bitfinex/quotes_BTCUSD_20250803
["timestamp","ask_amount","ask_price","bid_price","bid_amount"]
[1754227040582,0.917259,114250.0,114240.0,0.07122]
[1754227040985,0.917259,114250.0,114230.0,0.1336]
[1754227040986,1.050859,114250.0,114220.0,0.00316]
[1754227041187,0.575259,114240.0,114230.0,0.06606]
[1754227041388,0.577259,114240.0,114230.0,0.06606]
[1754227042072,0.577259,114240.0,114230.0,0.07122]
[1754227042286,0.59793417,114240.0,114230.0,0.07122]
[1754227042885,0.61163947,114240.0,114230.0,0.07122]
[1754227046016,0.59793417,114240.0,114230.0,0.07122]
[1754227046453,0.59793417,114240.0,114230.0,0.06622]
[1754227047982,0.59991417,114240.0,114230.0,0.06622]
[1754227049522,0.62999659,114240.0,114230.0,0.06622]
[1754227050174,0.61361976,114240.0,114230.0,0.06622]
[1754227050396,0.6299965,114240.0,114230.0,0.06622]
[1754227051295,0.61361976,114240.0,114230.0,0.06622]
[1754227051507,0.62999651,114240.0,114230.0,0.06622]
[1754227053076,0.62801651,114240.0,114230.0,0.06622]
[1754227053378,0.62802367,114240.0,114230.0,0.06122]
[1754227053598,0.42213567,114240.0,114230.0,0.06122]
[1754227054069,0.05276467,114240.0,114230.0,0.06122]
[1754227054281,0.03638076,114240.0,114230.0,0.06122]
[1754227054483,0.02267517,114240.0,114230.0,0.06122]
[1754227054692,0.34,114240.0,114230.0,0.06122]
[1754227055534,0.01639274,114240.0,114230.0,0.06122]
[1754227056188,0.03937778,114240.0,114230.0,0.06122]
[1754227057512,0.04758088,114240.0,114230.0,0.06122]
[1754227059864,0.03118814,114240.0,114230.0,0.06122]
[1754227060088,0.04760731,114240.0,114230.0,0.06122]
[1754227064653,0.03940421,114240.0,114230.0,0.06122]
[1754227066294,0.02298504,114240.0,114230.0,0.06122]
[1754227066716,0.369371,114240.0,114230.0,0.06122]
[1754227068756,0.18235604,114240.0,114230.0,0.06122]
[1754227068941,0.182357,114240.0,114230.0,0.06122]
[1754227069407,0.20199432,114240.0,114230.0,0.06122]
[1754227069604,0.01963732,114240.0,114230.0,0.06122]
[1754227069959,0.182357,114240.0,114230.0,0.06122]
[1754227071705,0.34,114250.0,114230.0,0.06122]
[1754227071912,0.36466214,114250.0,114230.0,0.06122]
[1754227072111,0.39099114,114250.0,114230.0,0.06122]
[1754227072698,0.40469622,114250.0,114230.0,0.06122]
[1754227073077,0.42508456,114250.0,114230.0,0.06122]
[1754227073279,0.42708456,114250.0,114230.0,0.06122]
[1754227074189,5.05,114240.0,114230.0,0.06122]
[1754227074597,0.00198,114240.0,114230.0,0.05606]
[1754227075161,0.02538,114240.0,114230.0,0.13376]
[1754227075369,0.34,114230.0,114220.0,0.19798312]
[1754227075673,0.00199,114230.0,114220.0,0.19999312]
[1754227076738,0.00199,114230.0,114220.0,0.20099312]
[1754227077162,0.00199,114230.0,114220.0,0.20199312]
[1754227080904,0.34,114230.0,114220.0,0.20199312]
[1754227084556,0.40912734,114250.0,114220.0,0.20199312]
[1754227084806,0.35370577,114230.0,114220.0,0.20199312]
[1754227085045,0.34,114230.0,114220.0,0.20199312]
[1754227085523,0.35370599,114230.0,114220.0,0.20099312]
[1754227085744,0.01568599,114230.0,114220.0,0.19606312]
[1754227086187,0.00198,114230.0,114220.0,0.19606312]
[1754227086653,0.00198,114230.0,114220.0,0.19706312]
[1754227086869,5.07538,114230.0,114220.0,0.13588312]
[1754227087543,5.07538,114230.0,114220.0,0.13488312]
[1754227087991,5.41638,114230.0,114220.0,8.312e-05]
[1754227088208,5.43831053,114230.0,114220.0,8.312e-05]
[1754227088424,5.46295709,114230.0,114220.0,8.312e-05]
[1754227089099,5.47566522,114230.0,114220.0,8.312e-05]
[1754227090206,5.46195709,114230.0,114220.0,8.312e-05]
[1754227090470,5.46295709,114230.0,114220.0,8.312e-05]
[1754227090691,0.34,114210.0,114200.0,0.19350312]
[1754227090930,5.39,114210.0,114200.0,0.196068]
[1754227092930,5.39,114210.0,114200.0,0.198068]
[1754227093365,5.39,114210.0,114200.0,0.196068]
[1754227093587,5.39,114210.0,114200.0,0.198068]
[1754227093808,5.39,114210.0,114200.0,0.196068]
[1754227094874,5.39199,114210.0,114200.0,0.196068]
[1754227095554,5.39199,114210.0,114200.0,0.197068]
[1754227096856,5.39199,114210.0,114200.0,0.192018]
[1754227097735,5.39199,114210.0,114200.0,0.058178]
[1754227097958,5.44205053,114210.0,114200.0,0.13523488]
[1754227098187,5.46838953,114210.0,114200.0,0.00147488]
[1754227098627,5.46938953,114210.0,114190.0,0.19532488]
[1754227098844,5.39,114200.0,114190.0,0.19532488]
[1754227099066,5.3921,114200.0,114190.0,0.13585]
[1754227099288,5.39,114200.0,114190.0,0.13585]
[1754227099509,5.40371,114200.0,114190.0,0.13585]
[1754227100204,5.40581,114200.0,114190.0,0.13376]
[1754227100386,5.40897,114200.0,114190.0,0.13476]
[1754227100669,5.39526,114200.0,114190.0,0.13476]
[1754227100881,5.4207,114200.0,114190.0,0.13476]
[1754227101331,5.55458,114200.0,114190.0,0.001]
[1754227102465,5.52914,114200.0,114190.0,0.001]
[1754227102864,5.55458,114200.0,114180.0,0.19603]
[1754227103074,5.05,114190.0,114180.0,0.19603]
[1754227103293,5.0521,114190.0,114180.0,0.19812]
[1754227103499,5.05526,114190.0,114180.0,0.0004]
[1754227103720,5.14409756,114190.0,114180.0,0.0004]
[1754227103935,5.4207,114190.0,114180.0,0.0004]
[1754227105259,5.55462,114190.0,114180.0,0.0004]
[1754227105492,5.55562,114190.0,114180.0,0.0004]
[1754227106175,0.34,114170.0,114160.0,0.13392]
[1754227106391,5.39,114170.0,114160.0,0.13899]
[1754227107311,5.39526,114170.0,114150.0,0.00342]
[1754227107522,5.05,114160.0,114150.0,0.13448478]
[1754227107735,5.0521,114160.0,114150.0,0.13657478]
[1754227108175,5.06581484,114160.0,114150.0,0.19828478]
[1754227108636,5.08596636,114160.0,114150.0,0.19828478]
[1754227109051,4.83805136,114160.0,114150.0,0.20126478]
[1754227109267,4.82433652,114160.0,114150.0,0.20226478]
[1754227109695,4.82223652,114160.0,114150.0,0.20226478]
[1754227109903,4.82223652,114160.0,114150.0,0.20326478]
[1754227110113,0.02015152,114160.0,114150.0,0.20326478]
[1754227110553,4.802085,114160.0,114150.0,0.20326478]
[1754227113172,4.82167627,114160.0,114150.0,0.20326478]
[1754227113394,0.01959127,114160.0,114150.0,0.20326478]
[1754227113808,5.142085,114160.0,114150.0,0.20326478]
[1754227114020,0.34,114160.0,114150.0,0.20326478]
[1754227117376,0.35983341,114160.0,114150.0,0.20326478]
[1754227118067,0.37831139,114160.0,114150.0,0.19819478]
[1754227118307,5.19174605,114160.0,114150.0,0.13648478]
[1754227118528,5.19174605,114160.0,114150.0,0.19819478]
[1754227119907,5.18858605,114160.0,114150.0,0.20326478]
[1754227120371,0.38440105,114160.0,114150.0,0.20326478]
[1754227120586,0.37621071,114160.0,114150.0,0.20326478]
[1754227120803,0.35983341,114160.0,114150.0,0.20326478]
[1754227124430,0.35983341,114160.0,114150.0,0.2207138]
[1754227131226,0.36804272,114160.0,114150.0,0.2207138]
[1754227131663,0.35983341,114160.0,114150.0,0.2207138]
[1754227132354,0.3680447,114160.0,114150.0,0.2207138]
[1754227132574,0.35983341,114160.0,114150.0,0.2207138]
[1754227133252,0.38447168,114160.0,114150.0,0.2207138]
[1754227133976,0.38447377,114160.0,114150.0,0.2207138]
[1754227134205,0.38655377,114160.0,114150.0,0.2207138]
[1754227135720,0.38655377,114160.0,114150.0,0.2156438]
[1754227135721,0.38952377,114160.0,114150.0,0.2156438]
[1754227136966,0.38655377,114160.0,114150.0,0.2176438]
[1754227137173,0.38655377,114160.0,114150.0,0.2205938]
[1754227137640,0.37012688,114160.0,114150.0,0.2205938]
[1754227138359,0.36191341,114160.0,114150.0,0.2205938]
[1754227138583,0.40316265,114160.0,114150.0,0.13680478]
[1754227139011,0.06316265,114160.0,114150.0,0.13680478]
[1754227139224,0.07687704,114160.0,114150.0,0.13680478]
[1754227139449,0.05494341,114160.0,114150.0,0.13680478]
[1754227139666,0.0631628,114160.0,114150.0,0.13680478]
[1754227139873,0.07960159,114160.0,114150.0,0.13680478]
[1754227141103,4.88168659,114160.0,114150.0,0.13680478]
[1754227141330,5.22168659,114160.0,114150.0,0.13680478]
[1754227141559,5.22168723,114160.0,114150.0,0.13680478]
[1754227142456,5.22168723,114160.0,114150.0,0.13480478]
[1754227145543,5.19162723,114160.0,114150.0,0.13480478]
[1754227147027,5.22168723,114160.0,114150.0,0.00056478]
[1754227147237,5.22168542,114160.0,114150.0,0.13472478]
[1754227148078,5.21346784,114160.0,114150.0,0.13472478]
[1754227149147,5.19702841,114160.0,114150.0,0.13472478]
[1754227150812,5.16696841,114160.0,114150.0,0.19795478]
[1754227151144,5.16696841,114160.0,114150.0,0.20299478]
[1754227151145,0.35983341,114160.0,114150.0,0.20299478]
[1754227152177,0.36515341,114160.0,114150.0,0.19795478]
[1754227153599,0.36515341,114160.0,114150.0,0.19993478]
[1754227153794,0.36193341,114160.0,114150.0,0.19993478]
[1754227155807,0.36193341,114160.0,114150.0,0.06577478]
[1754227156020,0.36193341,114160.0,114150.0,0.20009478]
[1754227156953,0.36515341,114160.0,114150.0,0.20009478]
[1754227158186,0.36193341,114160.0,114150.0,0.20009478]
[1754227158395,0.36193341,114160.0,114150.0,0.20315478]
[1754227159042,0.36193341,114160.0,114150.0,0.19811478]
[1754227159254,0.36515341,114160.0,114150.0,0.19811478]
[1754227160144,0.36515341,114160.0,114150.0,0.20009478]
[1754227160854,0.36193341,114160.0,114150.0,0.20009478]
[1754227169087,0.35983341,114160.0,114150.0,0.20315478]
[1754227169267,0.36193341,114160.0,114150.0,0.20315478]
[1754227177055,0.36193341,114160.0,114150.0,0.06883478]
[1754227177289,0.36193341,114160.0,114150.0,0.20307478]
[1754227179338,0.36193341,114160.0,114150.0,0.20001478]
[1754227179754,5.19524841,114160.0,114150.0,0.00056478]
[1754227179970,5.2199266,114160.0,114150.0,0.00056478]
[1754227180626,5.24238659,114160.0,114150.0,0.00056478]
[1754227181495,5.24438659,114160.0,114150.0,0.00056478]
[1754227181719,5.24538659,114160.0,114150.0,0.00056478]
[1754227181942,5.37966659,114160.0,114150.0,0.00056478]
[1754227182181,5.3597206,114160.0,114150.0,0.00056478]
[1754227182601,5.3617206,114160.0,114150.0,0.00056478]
[1754227183017,5.37543772,114160.0,114150.0,0.00056478]
[1754227183234,5.37543772,114160.0,114130.0,0.06465]
[1754227183235,4.802085,114140.0,114130.0,0.06061478]
[1754227183464,4.938475,114140.0,114130.0,0.06075753]
[1754227183670,4.807305,114140.0,114130.0,0.06075753]
[1754227184310,4.82102248,114140.0,114130.0,0.06075753]
[1754227185053,4.82102248,114140.0,114130.0,0.06175753]
[1754227185735,4.95530248,114140.0,114130.0,0.06175753]
[1754227185958,4.941585,114140.0,114130.0,0.06175753]
[1754227186949,4.802085,114140.0,114130.0,0.06674753]
[1754227189930,4.804195,114140.0,114130.0,0.06674753]
[1754227190698,4.807305,114140.0,114130.0,0.06371753]
[1754227190886,4.807305,114140.0,114130.0,0.00114275]
[1754227191312,4.807305,114140.0,114130.0,0.06539275]
[1754227193187,4.807305,114140.0,114130.0,0.00114275]
[1754227193425,4.837935,114140.0,114130.0,0.00114275]
[1754227194108,4.941465,114140.0,114130.0,0.00114275]
[1754227195357,0.34,114130.0,114120.0,0.19495275]
[1754227195580,0.34211,114130.0,114120.0,0.20008557]
[1754227196016,0.35582781,114130.0,114120.0,0.20008557]
[1754227196444,0.34211,114130.0,114120.0,0.20008557]
[1754227196662,0.34211,114130.0,114120.0,0.20208557]
[1754227197116,0.00211,114130.0,114120.0,0.20208557]
[1754227197333,0.00522,114130.0,114120.0,0.06639282]
[1754227197630,4.975555,114130.0,114120.0,0.00214282]
[1754227198279,4.975555,114130.0,114120.0,0.00314282]
[1754227198490,4.975555,114130.0,114120.0,0.00114282]
[1754227198690,4.975555,114130.0,114120.0,0.00014282]
[1754227199104,4.976555,114130.0,114120.0,0.00014282]
[1754227200215,5.316555,114130.0,114120.0,0.00014282]
[1754227201040,5.19611466,114130.0,114120.0,0.00014282]
[1754227201220,5.29622466,114130.0,114120.0,0.00014282]
[1754227202280,0.34,114120.0,114110.0,0.05979282]
[1754227202483,5.142085,114120.0,114110.0,0.06180042]
[1754227202721,5.144195,114120.0,114110.0,0.06483042]
[1754227203558,5.144195,114120.0,114110.0,0.06583042]
[1754227203767,5.144195,114120.0,114110.0,0.06783042]
[1754227205899,5.144195,114120.0,114110.0,0.06480042]
[1754227206522,5.147305,114120.0,114110.0,0.06480042]
[1754227207337,5.147305,114120.0,114110.0,0.06284042]
[1754227209419,5.147305,114120.0,114110.0,0.05784042]
[1754227211383,5.190325,114120.0,114110.0,0.0030476]
[1754227211590,5.20404427,114120.0,114110.0,0.0030476]
[1754227212006,5.16102427,114120.0,114110.0,0.0030476]
[1754227212824,5.16102427,114120.0,114110.0,0.0689176]
[1754227213075,5.29550427,114120.0,114110.0,0.0689176]
[1754227213738,5.33852427,114120.0,114110.0,0.0030476]
[1754227213947,5.29550427,114120.0,114110.0,0.0030476]
[1754227214163,5.29550427,114120.0,114110.0,0.0689176]
[1754227215637,5.29550427,114120.0,114110.0,0.0030476]
[1754227215870,5.33852427,114120.0,114110.0,0.0030476]
[1754227216538,5.33852427,114120.0,114100.0,0.0643176]
[1754227216752,5.142085,114110.0,114100.0,0.0643176]
[1754227216957,5.147225,114110.0,114100.0,0.0643176]
[1754227217172,0.34,114100.0,114090.0,0.13484]
[1754227217394,5.144115,114100.0,114090.0,0.13492344]
[1754227217609,5.147225,114100.0,114090.0,0.00048344]
[1754227218663,5.147225,114100.0,114090.0,0.06635344]
[1754227220157,5.148225,114100.0,114090.0,0.06635344]
[1754227221444,5.282625,114100.0,114090.0,0.00048344]
[1754227221663,5.327205,114100.0,114090.0,0.00048344]
[1754227221866,5.3409266,114100.0,114090.0,0.00048344]
[1754227222295,5.35734167,114100.0,114090.0,0.00048344]
[1754227222699,5.38370867,114100.0,114090.0,0.00048344]
[1754227224324,5.38370867,114100.0,114080.0,0.06175344]
[1754227224576,4.939555,114090.0,114080.0,0.06189625]
[1754227224799,4.941585,114090.0,114080.0,0.06189625]
[1754227225202,4.941585,114090.0,114080.0,0.00014281]
[1754227225412,5.34668417,114090.0,114080.0,0.00014281]
[1754227225618,5.34668417,114090.0,114080.0,0.00114281]
[1754227226029,5.34668417,114090.0,114080.0,0.00014281]
[1754227226235,5.30528317,114090.0,114080.0,0.00014281]
[1754227226443,5.31448805,114090.0,114080.0,0.00014281]
[1754227227050,5.31448805,114090.0,114080.0,0.00214281]
[1754227227461,5.31448805,114090.0,114080.0,0.00014281]
[1754227228289,5.31648805,114090.0,114080.0,0.00114281]
[1754227228919,5.31644805,114090.0,114080.0,0.00114281]
[1754227229337,5.34281805,114090.0,114080.0,0.00114281]
[1754227229542,5.35654243,114090.0,114080.0,0.00114281]
[1754227229752,5.35653033,114090.0,114080.0,0.00114281]
[1754227230165,5.17352033,114090.0,114080.0,0.06701281]
[1754227230369,5.30792033,114090.0,114080.0,0.06701281]
[1754227230588,5.17041033,114090.0,114080.0,0.06904281]
[1754227230797,5.30485033,114090.0,114080.0,0.07208281]
[1754227231649,5.30485033,114090.0,114080.0,0.06708281]
[1754227232691,5.30483204,114090.0,114080.0,0.06708281]
[1754227232896,5.27846204,114090.0,114080.0,0.06708281]
[1754227233309,5.27842204,114090.0,114080.0,0.06708281]
[1754227234011,5.27639204,114090.0,114080.0,0.06708281]
[1754227234861,5.27842204,114090.0,114080.0,0.06708281]
[1754227235273,5.26469766,114090.0,114080.0,0.06708281]
[1754227235538,5.26469766,114090.0,114080.0,0.06404281]
[1754227237437,4.92469766,114090.0,114080.0,0.06404281]
[1754227237855,4.79029766,114090.0,114080.0,0.06404281]
[1754227238082,4.92461766,114090.0,114080.0,0.06404281]
[1754227238319,4.92461831,114090.0,114080.0,0.06708281]
[1754227238535,4.78826831,114090.0,114080.0,0.06708281]
[1754227238755,4.78826831,114090.0,114080.0,0.06208281]
[1754227238756,4.897964,114090.0,114080.0,0.06208281]
[1754227239426,5.237964,114090.0,114080.0,0.06208281]
[1754227240731,0.343,114090.0,114080.0,0.06208281]
[1754227242037,0.35672359,114090.0,114080.0,0.06208281]
[1754227243008,0.01672359,114090.0,114080.0,0.06208281]
[1754227243214,0.35672359,114090.0,114080.0,0.06208281]
[1754227243457,0.01672359,114090.0,114080.0,0.06208281]
[1754227243823,0.35672359,114090.0,114080.0,0.06208281]
[1754227244442,0.35472359,114090.0,114080.0,0.06208281]
[1754227244648,0.35372359,114090.0,114080.0,0.06208281]
[1754227244838,0.35472359,114090.0,114080.0,0.06208281]
[1754227245253,0.341,114090.0,114080.0,0.06208281]
[1754227245663,0.341,114090.0,114080.0,0.06308281]
[1754227245870,0.34,114090.0,114080.0,0.06308281]
[1754227246297,0.34,114090.0,114080.0,0.06408281]
[1754227246734,0.34311,114110.0,114080.0,0.06408281]
[1754227246965,4.760684,114100.0,114090.0,0.00305]
[1754227247183,0.02463503,114100.0,114090.0,0.00518]
[1754227247395,0.00821027,114100.0,114090.0,0.00518]
[1754227247850,0.341,114110.0,114090.0,0.06634]
[1754227248175,4.760684,114100.0,114090.0,0.06634]
[1754227248999,0.001,114100.0,114090.0,0.06634]
[1754227249212,0.001,114100.0,114090.0,0.20074]
[1754227249637,0.01472199,114100.0,114090.0,0.20074]
[1754227250811,0.01472199,114100.0,114090.0,0.21818902]
[1754227251057,0.001,114100.0,114090.0,0.21818902]
[1754227251723,0.01372112,114120.0,114090.0,0.21818902]
[1754227252035,0.02192968,114120.0,114100.0,0.06640106]
[1754227252244,0.02192968,114120.0,114110.0,0.13657]
[1754227252444,0.02192968,114120.0,114110.0,0.13962]
[1754227252654,0.02192968,114120.0,114110.0,0.20078]
[1754227253263,0.01372112,114120.0,114110.0,0.20078]
[1754227255619,0.01372112,114120.0,114110.0,0.19578]
[1754227257635,0.01372112,114120.0,114110.0,0.19678]
[1754227261195,0.01372112,114120.0,114110.0,0.21422902]
[1754227261419,0.00409011,114140.0,114110.0,0.30286186]
[1754227261420,4.760684,114140.0,114110.0,0.30286186]
[1754227261644,0.00819576,114140.0,114120.0,0.00219067]
[1754227261863,4.760684,114150.0,114130.0,0.13645]
[1754227262094,0.00819315,114150.0,114140.0,0.06421]
[1754227262314,0.01033315,114150.0,114140.0,0.06634]
[1754227262528,0.01442326,114150.0,114140.0,0.06116]
[1754227262740,0.01442326,114150.0,114140.0,0.05916]
[1754227262957,0.01454815,114150.0,114140.0,0.05916]
[1754227263369,0.006355,114150.0,114140.0,0.05916]
[1754227263792,0.00535489,114150.0,114140.0,0.05516]
[1754227264441,0.02007216,114150.0,114140.0,0.05516]
[1754227264659,0.02107227,114150.0,114140.0,0.05516]
[1754227265367,0.02926093,114150.0,114140.0,0.05516]
[1754227265593,0.02107227,114150.0,114140.0,0.05516]
[1754227265840,0.02925934,114150.0,114140.0,0.05516]
[1754227266287,0.02926077,114150.0,114140.0,0.05516]
[1754227266994,5.100684,114140.0,114130.0,0.19548]
[1754227267253,0.34,114120.0,114110.0,0.00305]
[1754227267484,0.34214,114120.0,114110.0,0.2007]
[1754227268420,0.00214,114120.0,114110.0,0.2007]
[1754227268638,0.00314,114120.0,114110.0,0.2087]
[1754227269375,0.00314,114120.0,114110.0,0.2117]
[1754227271184,0.00314,114120.0,114110.0,0.07734]
[1754227271410,0.00314,114120.0,114110.0,0.21166]
[1754227272110,0.001,114120.0,114110.0,0.21166]
[1754227272830,0.003,114120.0,114110.0,0.21166]
[1754227273015,0.00606,114120.0,114110.0,0.20648]
[1754227273451,0.00606,114120.0,114110.0,0.07216]
[1754227273735,0.00606,114120.0,114110.0,0.20644]
[1754227274170,0.00506,114120.0,114110.0,0.19844]
[1754227274389,0.00606,114120.0,114110.0,0.20344]
[1754227274610,0.00606,114120.0,114110.0,0.20044]
[1754227275039,0.00606,114120.0,114110.0,0.20244]
[1754227275813,0.00606,114120.0,114110.0,0.20452]
[1754227276045,0.003,114120.0,114110.0,0.20452]
[1754227276264,0.003,114120.0,114110.0,0.20746]
[1754227276484,0.001,114120.0,114110.0,0.20746]
[1754227280383,0.00921409,114120.0,114110.0,0.20746]
[1754227280809,0.01121409,114120.0,114110.0,0.20746]
[1754227282451,0.00921409,114120.0,114110.0,0.20746]
[1754227289419,0.001,114120.0,114110.0,0.20746]
[1754227292913,0.003,114120.0,114110.0,0.20452]
[1754227293129,0.06958011,114120.0,114110.0,0.14128]
[1754227294009,0.07780133,114120.0,114110.0,0.14128]
[1754227294464,0.06958011,114120.0,114110.0,0.14128]
[1754227296228,0.00400011,114120.0,114110.0,0.20592]
[1754227297508,0.32117224,114150.0,114110.0,0.20592]
[1754227297727,4.760684,114140.0,114110.0,0.20886]
[1754227297943,4.760684,114130.0,114120.0,0.06256]
[1754227298154,4.7866145,114130.0,114120.0,0.06256]
[1754227298378,4.78661443,114130.0,114120.0,0.06256]
[1754227299470,5.12661443,114130.0,114120.0,0.06256]
[1754227299699,5.12661443,114130.0,114110.0,0.00294]
[1754227299923,0.34,114110.0,114100.0,0.13432]
[1754227300150,0.34125,114110.0,114090.0,0.19978]
[1754227300363,4.760684,114100.0,114090.0,0.19978]
[1754227300571,4.761934,114100.0,114090.0,0.19978]
[1754227301208,4.761934,114100.0,114090.0,0.19990489]
[1754227301840,5.102934,114100.0,114090.0,0.20490489]
[1754227302485,5.102934,114100.0,114090.0,0.20689489]
[1754227302925,5.101684,114100.0,114090.0,0.20689489]
[1754227303657,5.101684,114100.0,114090.0,0.20889489]
[1754227304814,5.101684,114100.0,114090.0,0.20893489]
[1754227306079,5.101684,114100.0,114090.0,0.20889489]
[1754227306722,5.102934,114100.0,114090.0,0.00712489]
[1754227306940,5.129296,114100.0,114090.0,0.00712489]
[1754227307798,5.129296,114100.0,114090.0,0.00212489]
[1754227308416,5.130076,114100.0,114090.0,0.00212489]
[1754227308631,5.264316,114100.0,114090.0,0.00212489]
[1754227310991,5.27804004,114100.0,114090.0,0.00212489]
[1754227312166,5.27726004,114100.0,114090.0,0.00212489]
[1754227314064,5.14302004,114100.0,114090.0,0.07074489]
[1754227314280,5.27597004,114100.0,114090.0,0.07273489]
[1754227314928,5.27597004,114100.0,114090.0,0.06773489]
[1754227315360,5.262246,114100.0,114090.0,0.06773489]
[1754227315579,5.128046,114100.0,114090.0,0.06773489]
[1754227315795,0.001,114100.0,114090.0,0.06773489]
[1754227316008,0.001,114100.0,114090.0,0.20193489]
[1754227320537,0.001,114100.0,114090.0,0.30801675]
[1754227323462,4.760684,114130.0,114100.0,0.01744902]
[1754227323697,4.760684,114120.0,114110.0,0.1342]
[1754227323940,4.760684,114130.0,114110.0,0.1342]
[1754227324190,4.760684,114130.0,114120.0,0.06862]
[1754227324429,4.760684,114130.0,114120.0,0.07061]
[1754227324659,4.761934,114130.0,114120.0,0.07061]
[1754227324892,4.761934,114130.0,114120.0,0.06542]
[1754227325384,5.101934,114130.0,114120.0,0.06542]
[1754227325608,4.760684,114120.0,114110.0,0.20282]
[1754227325814,4.761934,114120.0,114110.0,0.20282]
[1754227326024,0.00125,114120.0,114110.0,0.20282]
[1754227326450,0.00125,114120.0,114110.0,0.20481]
[1754227326669,0.34125,114120.0,114110.0,0.20481]
[1754227326879,0.34225,114120.0,114110.0,0.20481]
[1754227327087,0.34225,114120.0,114110.0,0.19981]
[1754227329019,0.34325,114120.0,114110.0,0.19981]
[1754227333375,0.00325,114120.0,114110.0,0.19981]
[1754227333580,0.002,114120.0,114110.0,0.19981]
[1754227333983,0.002,114120.0,114110.0,0.19481]
[1754227339081,0.002,114120.0,114110.0,0.30089186]
[1754227340342,0.001,114120.0,114110.0,0.30089186]
[1754227340753,0.002,114120.0,114110.0,0.30389186]
[1754227342044,0.001,114120.0,114110.0,0.30389186]
[1754227342496,0.001,114120.0,114110.0,0.30489186]
[1754227344718,0.001,114120.0,114110.0,0.33124286]
[1754227361011,0.001,114120.0,114110.0,0.30489186]
[1754227366270,0.001,114120.0,114110.0,0.18069186]
[1754227366516,0.001,114120.0,114110.0,0.31473186]
[1754227381599,0.00225,114120.0,114110.0,0.17550186]
[1754227381822,0.00225,114120.0,114110.0,0.13804]
[1754227382822,0.00225,114120.0,114110.0,0.19702]
[1754227384068,0.00225,114120.0,114110.0,0.13804]
[1754227384850,0.00225,114120.0,114110.0,0.19702]
[1754227385866,0.00225,114120.0,114110.0,0.20006]
[1754227388202,0.00225,114120.0,114110.0,0.20218]
[1754227389646,0.07071198,114150.0,114110.0,0.20218]
[1754227389897,4.760684,114140.0,114110.0,0.20218]
[1754227390192,4.78536746,114140.0,114110.0,0.20218]
[1754227390390,4.760684,114130.0,114110.0,0.20218]
[1754227390606,4.760684,114130.0,114110.0,0.19918]
[1754227390841,4.760684,114140.0,114110.0,0.19818]
[1754227391092,4.760684,114130.0,114110.0,0.19918]
[1754227391311,4.760684,114140.0,114110.0,0.19818]
[1754227391576,4.760684,114130.0,114110.0,0.19818]
[1754227393465,0.001,114130.0,114110.0,0.20118]
[1754227394125,0.001,114130.0,114110.0,0.1422]
[1754227394335,0.001,114130.0,114120.0,0.05816]
[1754227394757,0.001,114130.0,114120.0,0.06113]
[1754227396180,0.001,114130.0,114120.0,0.05613]
[1754227396602,0.001,114130.0,114120.0,0.19227]
[1754227397008,5.100684,114130.0,114120.0,0.19227]
[1754227397211,0.34,114130.0,114120.0,0.19227]
[1754227397412,0.341,114130.0,114120.0,0.19427]
[1754227398768,0.341,114130.0,114120.0,0.19213]
[1754227403017,0.341,114130.0,114120.0,0.05813]
[1754227403236,0.341,114130.0,114120.0,0.19213]
[1754227403661,0.341,114130.0,114120.0,0.19427]
[1754227404356,0.341,114130.0,114120.0,0.18927]
[1754227411412,0.341,114130.0,114120.0,0.18427]
[1754227416582,0.14857054,114130.0,114120.0,0.18427]
[1754227416798,0.001,114130.0,114120.0,0.18427]
[1754227418688,0.001,114130.0,114120.0,0.17927]
[1754227419106,0.001,114130.0,114120.0,0.04527]
[1754227419316,0.001,114130.0,114120.0,0.17713]
[1754227419525,0.001,114130.0,114120.0,0.136]
[1754227419736,0.02053,114130.0,114120.0,0.136]
[1754227420361,0.001,114130.0,114120.0,0.136]
[1754227420774,0.22912702,114150.0,114120.0,0.136]
[1754227420982,4.760684,114140.0,114120.0,0.19383]
[1754227421194,4.760684,114130.0,114120.0,0.19383]
[1754227421405,4.760684,114130.0,114120.0,0.19704]
[1754227421610,4.760684,114140.0,114120.0,0.19704]
[1754227421812,4.760684,114130.0,114120.0,0.19704]
[1754227422249,4.760684,114140.0,114120.0,0.19383]
[1754227422474,4.760684,114130.0,114120.0,0.19183]
[1754227422684,4.760684,114140.0,114120.0,0.19183]
[1754227422902,4.78536875,114140.0,114120.0,0.19183]
[1754227423115,4.760684,114130.0,114120.0,0.19183]
[1754227423327,4.760684,114140.0,114120.0,0.19183]
[1754227423536,4.78536785,114140.0,114120.0,0.19183]
[1754227423749,4.760684,114130.0,114120.0,0.19183]
[1754227423975,4.761684,114140.0,114120.0,0.001]
[1754227424236,4.760684,114130.0,114120.0,0.135]
[1754227425200,4.760684,114130.0,114120.0,0.19283]
[1754227425623,4.760684,114130.0,114120.0,0.18783]
[1754227425923,4.760684,114140.0,114120.0,0.18783]
[1754227426159,0.001,114130.0,114120.0,0.19083]
[1754227427076,4.760684,114140.0,114120.0,0.19104]
[1754227427305,4.760684,114130.0,114120.0,0.19204]
[1754227427738,4.760684,114130.0,114120.0,0.19104]
[1754227428438,4.760684,114140.0,114120.0,0.19104]
[1754227428665,4.78536507,114140.0,114120.0,0.19104]
[1754227428919,4.760684,114130.0,114120.0,0.19104]
[1754227429149,0.001,114130.0,114120.0,0.19304]
[1754227429619,4.760684,114140.0,114120.0,0.19104]
[1754227429868,4.7863648,114140.0,114120.0,0.19104]
[1754227430100,4.760684,114130.0,114120.0,0.19104]
[1754227430585,0.001,114130.0,114120.0,0.19304]
[1754227430791,0.34,114150.0,114120.0,0.19104]
[1754227431000,4.760684,114130.0,114120.0,0.19104]
[1754227432518,4.760684,114140.0,114120.0,0.19104]
[1754227432747,4.760684,114140.0,114120.0,0.18604]
[1754227432958,0.001,114130.0,114120.0,0.18804]
[1754227433642,4.760684,114130.0,114110.0,0.05783]
[1754227433855,5.1253651,114130.0,114110.0,0.13396]
[1754227434056,4.760684,114120.0,114110.0,0.13396]
[1754227434263,4.513251,114120.0,114110.0,0.13396]
[1754227434893,4.513251,114120.0,114110.0,0.19179]
[1754227436153,4.513251,114120.0,114110.0,0.06083]